fUST/lending_fUST_20240425
["ID","MTS","AMOUNT","RATE_DAILY","PERIOD"]
[323469897,1714029065799,-793.19,0.00018082,2]
[323469898,1714029065809,-500.0,0.00018082,2]
[323469899,1714029065819,-616.43,0.00018082,2]
[323469900,1714029065829,-500.0,0.00018082,2]
[323469901,1714029065839,-583.35,0.00018082,2]
[323469902,1714029065849,-500.0,0.00018082,2]
[323469903,1714029065859,-500.0,0.00018082,2]
[323469904,1714029065869,-570.67038609,0.00018082,2]
[323469905,1714029065878,-500.0,0.00018082,2]
[323469906,1714029065888,-500.0,0.00018082,2]
[323469907,1714029065898,-500.0,0.00018082,2]
[323469908,1714029065907,-500.0,0.00018082,2]
[323469909,1714029065917,-500.0,0.00018082,2]
[323469910,1714029065926,-500.0,0.00018082,2]
[323469911,1714029065936,-579.27240176,0.00018082,2]
[323469912,1714029065946,-500.0,0.00018082,2]
[323469913,1714029065955,-500.0,0.00018082,2]
[323469914,1714029065966,-500.0,0.00018082,2]
[323469915,1714029065976,-669.58,0.00018082,2]
[323469916,1714029065985,-489.28663112,0.00018082,2]
[323469917,1714029065995,-633.47040378,0.00018082,2]
[323469918,1714029066009,-500.0,0.00018082,2]
[323469919,1714029066018,-500.0,0.00018082,2]
[323469920,1714029066028,-524.5199798,0.00018082,2]
[323469921,1714029066037,-500.0,0.00018082,2]
[323469922,1714029066047,-500.0,0.00018082,2]
[323469923,1714029066056,-500.0,0.00018082,2]
[323469924,1714029066066,-709.97,0.00018082,2]
[323469925,1714029066075,-500.0,0.00018082,2]
[323469926,1714029066086,-500.0,0.00018082,2]
[323469927,1714029066095,-500.0,0.00018082,2]
[323469928,1714029066107,-1057.71,0.00018082,2]
[323469929,1714029066116,-640.20825651,0.00018082,2]
[323469930,1714029066125,-500.56,0.00018082,2]
[323469931,1714029066134,-633.35,0.00018082,2]
[323469932,1714029066144,-500.0,0.00018082,2]
[323469933,1714029066154,-816.77,0.00018082,2]
[323469934,1714029066163,-500.0,0.00018082,2]
[323469935,1714029066173,-1060.08,0.00018082,2]
[323469936,1714029066183,-500.0,0.00018082,2]
[323469937,1714029066192,-929.12,0.00018082,2]
[323469938,1714029066201,-890.42,0.00018082,2]
[323469939,1714029066210,-500.0,0.00018082,2]
[323469940,1714029066219,-500.0,0.00018082,2]
[323469941,1714029066229,-500.0,0.00018082,2]
[323469942,1714029066238,-500.0,0.00018082,2]
[323469943,1714029066248,-630.9,0.00018082,2]
[323469944,1714029066258,-500.0,0.00018082,2]
[323469945,1714029066267,-739.88,0.00018082,2]
[323469946,1714029066276,-500.0,0.00018082,2]
[323469947,1714029066286,-500.0,0.00018082,2]
[323469948,1714029066295,-500.0,0.00018082,2]
[323469949,1714029066304,-500.0,0.00018082,2]
[323469950,1714029066314,-592.11,0.00018082,2]
[323469951,1714029066323,-822.31,0.00018082,2]
[323469952,1714029066332,-500.0,0.00018082,2]
[323469953,1714029066341,-500.0,0.00018082,2]
[323469954,1714029066351,-739.2,0.00018082,2]
[323469955,1714029066360,-605.37,0.00018082,2]
[323469956,1714029066370,-457.041219,0.00018082,2]
[323469957,1714029066379,-500.0,0.00018082,2]
[323469958,1714029066389,-558.24,0.00018082,2]
[323469959,1714029066399,-546.26,0.00018082,2]
[323469960,1714029066408,-1237.28,0.00018082,2]
[323469961,1714029066418,-500.0,0.00018082,2]
[323469962,1714029066427,-500.0,0.00018082,2]
[323469963,1714029066436,-500.0,0.00018082,2]
[323469964,1714029066445,-500.0,0.00018082,2]
[323469965,1714029066455,-500.0,0.00018082,2]
[323469966,1714029066464,-1489.98,0.00018082,2]
[323469967,1714029066474,-500.0,0.00018082,2]
[323469968,1714029066483,-958.76,0.00018082,2]
[323469969,1714029066492,-500.0,0.00018082,2]
[323469970,1714029066502,-1050.99,0.00018082,2]
[323469971,1714029066511,-500.0,0.00018082,2]
[323469972,1714029066520,-500.0,0.00018082,2]
[323469973,1714029066529,-685.4,0.00018082,2]
[323469974,1714029066538,-500.0,0.00018082,2]
[323469975,1714029066547,-541.01,0.00018082,2]
[323469976,1714029066556,-500.0,0.00018082,2]
[323469977,1714029066566,-946.6,0.00018082,2]
[323469978,1714029066575,-1067.85,0.00018082,2]
[323469979,1714029066585,-1592.53,0.00018082,2]
[323469980,1714029066594,-1450.14,0.00018082,2]
[323469981,1714029066606,-527.22853348,0.00018082,2]
[323469982,1714029066615,-500.0,0.00018082,2]
[323469983,1714029066625,-500.0,0.00018082,2]
[323469984,1714029066634,-835.63,0.00018082,2]
[323469985,1714029066643,-500.0,0.00018082,2]
[323469986,1714029066652,-500.0,0.00018082,2]
[323469987,1714029066661,-770.33,0.00018082,2]
[323469988,1714029066671,-500.0,0.00018082,2]
[323469989,1714029066680,-500.0,0.00018082,2]
[323469990,1714029066690,-769.52,0.00018082,2]
[323469991,1714029066699,-1283.68,0.00018082,2]
[323469992,1714029066708,-500.0,0.00018082,2]
[323469993,1714029066718,-536.62,0.00018082,2]
[323469994,1714029066727,-500.0,0.00018082,2]
[323469995,1714029066736,-500.0,0.00018082,2]
[323469996,1714029066746,-500.0,0.00018082,2]
[323469997,1714029066755,-575.83,0.00018082,2]
[323469998,1714029066765,-3973.6,0.00018082,2]
[323469999,1714029066774,-500.0,0.00018082,2]
[323470000,1714029066784,-2242.97,0.00018082,2]
[323470001,1714029066793,-3243.05,0.00018082,2]
[323470002,1714029066802,-500.0,0.00018082,2]
[323470003,1714029066811,-500.0,0.00018082,2]
[323470004,1714029066821,-508.57,0.00018082,2]
[323470005,1714029066830,-631.78,0.00018082,2]
[323470006,1714029066839,-1375.26,0.00018082,2]
[323470007,1714029066849,-500.0,0.00018082,2]
[323470008,1714029066858,-500.0,0.00018082,2]
[323470009,1714029066866,-1387.72,0.00018082,2]
[323470010,1714029066875,-500.0,0.00018082,2]
[323470011,1714029066885,-500.0,0.00018082,2]
[323470012,1714029066894,-1846.12,0.00018082,2]
[323470013,1714029066903,-500.0,0.00018082,2]
[323470014,1714029066912,-800.02,0.00018082,2]
[323470015,1714029066921,-500.0,0.00018082,2]
[323470016,1714029066930,-500.0,0.00018082,2]
[323470017,1714029066940,-500.0,0.00018082,2]
[323470018,1714029066949,-646.8,0.00018082,2]
[323470019,1714029066958,-2358.88,0.00018082,2]
[323470020,1714029066968,-1011.49,0.00018082,2]
[323470021,1714029066977,-500.0,0.00018082,2]
[323470022,1714029066986,-2667.62,0.00018082,2]
[323470023,1714029066996,-500.0,0.00018082,2]
[323470024,1714029067006,-500.0,0.00018082,2]
[323470025,1714029067018,-1174.54,0.00018082,2]
[323470026,1714029067027,-592.52,0.00018082,2]
[323470027,1714029067037,-723.31,0.00018082,2]
[323470028,1714029067046,-500.0,0.00018082,2]
[323470029,1714029067057,-402.17851603,0.00018082,2]
[323470030,1714029067066,-500.0,0.00018082,2]
[323470031,1714029067075,-557.02,0.00018082,2]
[323470032,1714029067087,-696.57,0.00018082,2]
[323470033,1714029067097,-646.03,0.00018082,2]
[323470034,1714029067109,-500.0,0.00018082,2]
[323470035,1714029067120,-1084.85,0.00018082,2]
[323470036,1714029067129,-584.17,0.00018082,2]
[323470037,1714029067138,-500.0,0.00018082,2]
[323470038,1714029067148,-500.0,0.00018082,2]
[323470039,1714029067158,-762.04,0.00018082,2]
[323470040,1714029067168,-509.24,0.00018082,2]
[323470041,1714029067178,-608.48200001,0.00018082,2]
[323470042,1714029067188,-500.0,0.00018082,2]
[323470043,1714029067313,-1828.52,0.00018082,2]
[323470044,1714029067323,-525.09,0.00018082,2]
[323470045,1714029067334,-9714.64,0.00018082,2]
[323470046,1714029067344,-640.61495534,0.00018082,2]
[323470047,1714029067355,-422.92120825,0.00018082,2]
[323470048,1714029067366,-500.0,0.00018082,2]
[323470049,1714029067375,-500.0,0.00018082,2]
[323470050,1714029067384,-1951.68,0.00018082,2]
[323470051,1714029067394,-1197.24,0.00018082,2]
[323470052,1714029067403,-639.36,0.00018082,2]
[323470053,1714029067413,-500.0,0.00018082,2]
[323470054,1714029067423,-500.0,0.00018082,2]
[323470055,1714029067432,-1048.02,0.00018082,2]
[323470056,1714029067442,-2000.98,0.00018082,2]
[323470057,1714029067452,-594.44,0.00018082,2]
[323470058,1714029067461,-1048.7,0.00018082,2]
[323470059,1714029067470,-500.0,0.00018082,2]
[323470060,1714029067478,-500.0,0.00018082,2]
[323470061,1714029067488,-1181.52,0.00018082,2]
[323470062,1714029067497,-500.0,0.00018082,2]
[323470063,1714029067506,-1309.77,0.00018082,2]
[323470064,1714029067516,-500.0,0.00018082,2]
[323470065,1714029067526,-678.72,0.00018082,2]
[323470066,1714029067535,-500.0,0.00018082,2]
[323470067,1714029067545,-811.0,0.00018082,2]
[323470068,1714029067554,-1302.25,0.00018082,2]
[323470069,1714029067563,-620.0,0.00018343,2]
[323470070,1714029067573,-595.25384088,0.00018356,2]
[323470071,1714029067583,-500.0,0.00018356,2]
[323470072,1714029067592,-500.0,0.00018356,2]
[323470073,1714029067601,-172.38671787,0.00018356,2]
[323470074,1714029067611,-500.0,0.00018356,2]
[323470075,1714029067620,-818.02,0.00018356,2]
[323470076,1714029067629,-500.0,0.00018356,2]
[323470077,1714029067639,-619.95,0.00018356,2]
[323470078,1714029067648,-568.07,0.00018356,2]
[323470079,1714029067657,-500.0,0.00018356,2]
[323470080,1714029067666,-793.19,0.00018356,2]
[323470081,1714029067675,-500.0,0.00018356,2]
[323470082,1714029067684,-616.43,0.00018356,2]
[323470083,1714029067694,-500.0,0.00018356,2]
[323470084,1714029067703,-583.35,0.00018356,2]
[323470085,1714029067712,-500.0,0.00018356,2]
[323470086,1714029067721,-500.0,0.00018356,2]
[323470087,1714029067730,-500.0,0.00018356,2]
[323470088,1714029067739,-500.0,0.00018356,2]
[323470089,1714029067749,-500.0,0.00018356,2]
[323470090,1714029067758,-500.0,0.00018356,2]
[323470091,1714029067767,-410.33023022,0.00018356,2]
[323470092,1714029067776,-500.0,0.00018356,2]
[323470093,1714029067785,-500.0,0.00018356,2]
[323470094,1714029067794,-500.0,0.00018356,2]
[323470095,1714029067803,-500.0,0.00018356,2]
[323470096,1714029067813,-669.58,0.00018356,2]
[323470097,1714029067822,-500.0,0.00018356,2]
[323470098,1714029067831,-500.0,0.00018356,2]
[323470099,1714029067841,-500.0,0.00018356,2]
[323470100,1714029067850,-293.82,0.00018356,2]
[323470101,1714029067860,-525.99532038,0.00018356,2]
[323470102,1714029067869,-709.97,0.00018356,2]
[323470103,1714029067878,-516.55894458,0.00018356,2]
[323470104,1714029067887,-500.0,0.00018356,2]
[323470105,1714029067896,-500.0,0.00018356,2]
[323470106,1714029067906,-1057.71,0.00018356,2]
[323470107,1714029067915,-500.56,0.00018356,2]
[323470108,1714029067925,-633.35,0.00018356,2]
[323470109,1714029067934,-500.0,0.00018356,2]
[323470110,1714029067943,-816.77,0.00018356,2]
[323470111,1714029067953,-615.51567831,0.00018356,2]
[323470112,1714029067963,-1060.08,0.00018356,2]
[323470113,1714029067972,-500.0,0.00018356,2]
[323470114,1714029067981,-929.12,0.00018356,2]
[323470115,1714029067990,-890.42,0.00018356,2]
[323470116,1714029068002,-589.59357194,0.00018356,2]
[323470117,1714029068012,-500.0,0.00018356,2]
[323470118,1714029068022,-167.21224166,0.00018356,2]
[323470119,1714029068031,-500.0,0.00018356,2]
[323470120,1714029068040,-630.9,0.00018356,2]
[323470121,1714029068050,-500.0,0.00018356,2]
[323470122,1714029068059,-739.88,0.00018356,2]
[323470123,1714029068069,-500.0,0.00018356,2]
[323470124,1714029068081,-500.0,0.00018356,2]
[323470125,1714029068091,-500.0,0.00018356,2]
[323470126,1714029068100,-500.0,0.00018356,2]
[323470127,1714029068113,-592.11,0.00018356,2]
[323470128,1714029068122,-822.31,0.00018356,2]
[323470129,1714029068132,-500.0,0.00018356,2]
[323470130,1714029068142,-500.0,0.00018356,2]
[323470131,1714029068150,-739.2,0.00018356,2]
[323470132,1714029068160,-605.37,0.00018356,2]
[323470133,1714029068168,-500.0,0.00018356,2]
[323470134,1714029068177,-558.24,0.00018356,2]
[323470135,1714029068186,-546.26,0.00018356,2]
[323470136,1714029068195,-1237.28,0.00018356,2]
[323470137,1714029068204,-500.0,0.00018356,2]
[323470138,1714029068213,-500.0,0.00018356,2]
[323470139,1714029068222,-500.0,0.00018356,2]
[323470140,1714029068232,-500.0,0.00018356,2]
[323470141,1714029068241,-500.0,0.00018356,2]
[323470142,1714029068250,-1489.98,0.00018356,2]
[323470143,1714029068260,-500.0,0.00018356,2]
[323470144,1714029068269,-958.76,0.00018356,2]
[323470145,1714029068278,-500.0,0.00018356,2]
[323470146,1714029068287,-1050.99,0.00018356,2]
[323470147,1714029068296,-500.0,0.00018356,2]
[323470148,1714029068305,-500.0,0.00018356,2]
[323470149,1714029068314,-685.4,0.00018356,2]
[323470150,1714029068323,-500.0,0.00018356,2]
[323470151,1714029068332,-541.01,0.00018356,2]
[323470152,1714029068341,-500.0,0.00018356,2]
[323470153,1714029068351,-946.6,0.00018356,2]
[323470154,1714029068363,-1067.85,0.00018356,2]
[323470155,1714029068372,-1592.53,0.00018356,2]
[323470156,1714029068381,-1450.14,0.00018356,2]
[323470157,1714029068390,-500.0,0.00018356,2]
[323470158,1714029068399,-500.0,0.00018356,2]
[323470159,1714029068408,-835.63,0.00018356,2]
[323470160,1714029068417,-500.0,0.00018356,2]
[323470161,1714029068426,-500.0,0.00018356,2]
[323470162,1714029068435,-770.33,0.00018356,2]
[323470163,1714029068444,-500.0,0.00018356,2]
[323470164,1714029068453,-500.0,0.00018356,2]
[323470165,1714029068462,-769.52,0.00018356,2]
[323470166,1714029068471,-1283.68,0.00018356,2]
[323470167,1714029068480,-500.0,0.00018356,2]
[323470168,1714029068489,-536.62,0.00018356,2]
[323470169,1714029068498,-500.0,0.00018356,2]
[323470170,1714029068508,-500.0,0.00018356,2]
[323470171,1714029068517,-500.0,0.00018356,2]
[323470172,1714029068526,-575.83,0.00018356,2]
[323470173,1714029068535,-3973.6,0.00018356,2]
[323470174,1714029068545,-500.0,0.00018356,2]
[323470175,1714029068554,-2242.97,0.00018356,2]
[323470176,1714029068563,-3243.05,0.00018356,2]
[323470177,1714029068572,-500.0,0.00018356,2]
[323470178,1714029068582,-520.63956249,0.00018356,2]
[323470179,1714029068590,-508.57,0.00018356,2]
[323470180,1714029068599,-631.78,0.00018356,2]
[323470181,1714029068611,-1375.26,0.00018356,2]
[323470182,1714029068620,-500.0,0.00018356,2]
[323470183,1714029068630,-500.0,0.00018356,2]
[323470184,1714029068640,-1387.72,0.00018356,2]
[323470185,1714029068649,-500.0,0.00018356,2]
[323470186,1714029068659,-500.0,0.00018356,2]
[323470187,1714029068668,-1846.12,0.00018356,2]
[323470188,1714029068677,-500.0,0.00018356,2]
[323470189,1714029068686,-800.02,0.00018356,2]
[323470190,1714029068695,-500.0,0.00018356,2]
[323470191,1714029068704,-500.0,0.00018356,2]
[323470192,1714029068713,-500.0,0.00018356,2]
[323470193,1714029068722,-646.8,0.00018356,2]
[323470194,1714029068731,-2358.88,0.00018356,2]
[323470195,1714029068740,-1011.49,0.00018356,2]
[323470196,1714029068749,-500.0,0.00018356,2]
[323470197,1714029068758,-2667.62,0.00018356,2]
[323470198,1714029068767,-500.0,0.00018356,2]
[323470199,1714029068776,-500.0,0.00018356,2]
[323470200,1714029068786,-1174.54,0.00018356,2]
[323470201,1714029068796,-592.52,0.00018356,2]
[323470202,1714029068805,-723.31,0.00018356,2]
[323470203,1714029068814,-500.0,0.00018356,2]
[323470204,1714029068823,-500.0,0.00018356,2]
[323470205,1714029068832,-557.02,0.00018356,2]
[323470206,1714029068842,-696.57,0.00018356,2]
[323470207,1714029068851,-646.03,0.00018356,2]
[323470208,1714029068861,-500.0,0.00018356,2]
[323470209,1714029068870,-1084.85,0.00018356,2]
[323470210,1714029068879,-584.17,0.00018356,2]
[323470211,1714029068888,-500.0,0.00018356,2]
[323470212,1714029068898,-500.0,0.00018356,2]
[323470213,1714029068908,-762.04,0.00018356,2]
[323470214,1714029068918,-509.24,0.00018356,2]
[323470215,1714029068927,-500.0,0.00018356,2]
[323470216,1714029068936,-1828.52,0.00018356,2]
[323470217,1714029068945,-525.09,0.00018356,2]
[323470218,1714029068954,-9714.64,0.00018356,2]
[323470219,1714029068963,-500.0,0.00018356,2]
[323470220,1714029068972,-500.0,0.00018356,2]
[323470221,1714029068980,-1951.68,0.00018356,2]
[323470222,1714029068989,-1197.24,0.00018356,2]
[323470223,1714029068999,-639.36,0.00018356,2]
[323470224,1714029069009,-500.0,0.00018356,2]
[323470225,1714029069020,-500.0,0.00018356,2]
[323470226,1714029069030,-1048.02,0.00018356,2]
[323470227,1714029069039,-2000.98,0.00018356,2]
[323470228,1714029069048,-594.44,0.00018356,2]
[323470229,1714029069058,-1048.7,0.00018356,2]
[323470230,1714029069067,-500.0,0.00018356,2]
[323470231,1714029069077,-500.0,0.00018356,2]
[323470232,1714029069087,-1181.52,0.00018356,2]
[323470233,1714029069096,-500.0,0.00018356,2]
[323470234,1714029069106,-1309.77,0.00018356,2]
[323470235,1714029069115,-500.0,0.00018356,2]
[323470236,1714029069125,-678.72,0.00018356,2]
[323470237,1714029069134,-500.0,0.00018356,2]
[323470238,1714029069143,-811.0,0.00018356,2]
[323470239,1714029069153,-1302.25,0.00018356,2]
[323470240,1714029069161,-500.0,0.0001863,2]
[323470241,1714029069170,-500.0,0.0001863,2]
[323470242,1714029069179,-500.0,0.0001863,2]
[323470243,1714029069188,-818.02,0.0001863,2]
[323470244,1714029069197,-500.0,0.0001863,2]
[323470245,1714029069206,-619.95,0.0001863,2]
[323470246,1714029069215,-568.07,0.0001863,2]
[323470247,1714029069224,-500.0,0.0001863,2]
[323470248,1714029069233,-793.19,0.0001863,2]
[323470249,1714029069243,-500.0,0.0001863,2]
[323470250,1714029069253,-616.43,0.0001863,2]
[323470251,1714029069262,-500.0,0.0001863,2]
[323470252,1714029069271,-583.35,0.0001863,2]
[323470253,1714029069280,-500.0,0.0001863,2]
[323470254,1714029069289,-500.0,0.0001863,2]
[323470255,1714029069298,-500.0,0.0001863,2]
[323470256,1714029069308,-500.0,0.0001863,2]
[323470257,1714029069317,-500.0,0.0001863,2]
[323470258,1714029069327,-500.0,0.0001863,2]
[323470259,1714029069337,-500.0,0.0001863,2]
[323470260,1714029069348,-514.43537492,0.0001863,2]
[323470261,1714029069359,-500.0,0.0001863,2]
[323470262,1714029069368,-500.0,0.0001863,2]
[323470263,1714029069378,-669.58,0.0001863,2]
[323470264,1714029069386,-500.0,0.0001863,2]
[323470265,1714029069396,-500.0,0.0001863,2]
[323470266,1714029069405,-500.0,0.0001863,2]
[323470267,1714029069415,-709.97,0.0001863,2]
[323470268,1714029069424,-500.0,0.0001863,2]
[323470269,1714029069434,-500.0,0.0001863,2]
[323470270,1714029069444,-1057.71,0.0001863,2]
[323470271,1714029069453,-500.56,0.0001863,2]
[323470272,1714029069461,-633.35,0.0001863,2]
[323470273,1714029069470,-500.0,0.0001863,2]
[323470274,1714029069479,-816.77,0.0001863,2]
[323470275,1714029069488,-1060.08,0.0001863,2]
[323470276,1714029069498,-500.0,0.0001863,2]
[323470277,1714029069507,-890.42,0.0001863,2]
[323470278,1714029069517,-929.12,0.0001863,2]
[323470279,1714029069526,-500.0,0.0001863,2]
[323470280,1714029069536,-644.86659374,0.0001863,2]
[323470281,1714029069545,-630.9,0.0001863,2]
[323470282,1714029069553,-347.24590962,0.0001863,2]
[323470283,1714029069563,-739.88,0.0001863,2]
[323470284,1714029069571,-500.0,0.0001863,2]
[323470285,1714029069581,-500.0,0.0001863,2]
[323470286,1714029069590,-500.0,0.0001863,2]
[323470287,1714029069599,-360.14606649,0.0001863,2]
[323470288,1714029069610,-592.11,0.0001863,2]
[323470289,1714029069619,-822.31,0.0001863,2]
[323470290,1714029069629,-500.0,0.0001863,2]
[323470291,1714029069637,-500.0,0.0001863,2]
[323470292,1714029069647,-739.2,0.0001863,2]
[323470293,1714029069657,-605.37,0.0001863,2]
[323470294,1714029069666,-500.0,0.0001863,2]
[323470295,1714029069676,-558.24,0.0001863,2]
[323470296,1714029069794,-546.26,0.0001863,2]
[323470297,1714029069803,-1237.28,0.0001863,2]
[323470298,1714029069812,-500.0,0.0001863,2]
[323470299,1714029069821,-506.0,0.0001863,2]
[323470300,1714029069830,-500.0,0.0001863,2]
[323470301,1714029069840,-451.50542673,0.0001863,2]
[323470302,1714029069853,-500.0,0.0001863,2]
[323470303,1714029069865,-1489.98,0.0001863,2]
[323470304,1714029069876,-500.0,0.0001863,2]
[323470305,1714029069886,-958.76,0.0001863,2]
[323470306,1714029069896,-500.0,0.0001863,2]
[323470307,1714029069906,-1050.99,0.0001863,2]
[323470308,1714029069917,-500.0,0.0001863,2]
[323470309,1714029069927,-500.0,0.0001863,2]
[323470310,1714029069937,-685.4,0.0001863,2]
[323470311,1714029069948,-500.0,0.0001863,2]
[323470312,1714029069957,-541.01,0.0001863,2]
[323470313,1714029069968,-500.0,0.0001863,2]
[323470314,1714029069977,-946.6,0.0001863,2]
[323470315,1714029069987,-1067.85,0.0001863,2]
[323470316,1714029069997,-1592.53,0.0001863,2]
[323470317,1714029070009,-1450.14,0.0001863,2]
[323470318,1714029070020,-500.0,0.0001863,2]
[323470319,1714029070029,-500.0,0.0001863,2]
[323470320,1714029070038,-835.63,0.0001863,2]
[323470321,1714029070049,-500.0,0.0001863,2]
[323470322,1714029070058,-513.5535849,0.0001863,2]
[323470323,1714029070067,-770.33,0.0001863,2]
[323470324,1714029070077,-500.0,0.0001863,2]
[323470325,1714029070091,-556.62566393,0.0001863,2]
[323470326,1714029070101,-769.52,0.0001863,2]
[323470327,1714029070112,-1283.68,0.0001863,2]
[323470328,1714029070122,-574.71153011,0.0001863,2]
[323470329,1714029070131,-536.62,0.0001863,2]
[323470330,1714029070141,-325.48708644,0.0001863,2]
[323470331,1714029070150,-500.0,0.0001863,2]
[323470332,1714029070160,-500.0,0.0001863,2]
[323470333,1714029070170,-575.83,0.0001863,2]
[323470334,1714029070181,-3973.6,0.0001863,2]
[323470335,1714029070191,-500.0,0.0001863,2]
[323470336,1714029070201,-2242.97,0.0001863,2]
[323470337,1714029070211,-3243.05,0.0001863,2]
[323470338,1714029070222,-500.0,0.0001863,2]
[323470339,1714029070232,-508.57,0.0001863,2]
[323470340,1714029070242,-631.78,0.0001863,2]
[323470341,1714029070252,-500.0,0.0001863,2]
[323470342,1714029070262,-1375.26,0.0001863,2]
[323470343,1714029070272,-500.0,0.0001863,2]
[323470344,1714029070282,-1387.72,0.0001863,2]
[323470345,1714029070295,-500.0,0.0001863,2]
[323470346,1714029070305,-500.0,0.0001863,2]
[323470347,1714029070315,-1846.12,0.0001863,2]
[323470348,1714029070324,-500.0,0.0001863,2]
[323470349,1714029070335,-800.02,0.0001863,2]
[323470350,1714029070344,-500.0,0.0001863,2]
[323470351,1714029070355,-500.0,0.0001863,2]
[323470352,1714029070365,-489.64842002,0.0001863,2]
[323470353,1714029070376,-646.8,0.0001863,2]
[323470354,1714029070387,-2358.88,0.0001863,2]
[323470355,1714029070396,-1011.49,0.0001863,2]
[323470356,1714029070405,-500.0,0.0001863,2]
[323470357,1714029070414,-2667.62,0.0001863,2]
[323470358,1714029070424,-500.0,0.0001863,2]
[323470359,1714029070435,-500.0,0.0001863,2]
[323470360,1714029070446,-1174.54,0.0001863,2]
[323470361,1714029070456,-592.52,0.0001863,2]
[323470362,1714029070466,-723.31,0.0001863,2]
[323470363,1714029070476,-500.0,0.0001863,2]
[323470364,1714029070486,-500.0,0.0001863,2]
[323470365,1714029070497,-557.02,0.0001863,2]
[323470366,1714029070508,-696.57,0.0001863,2]
[323470367,1714029070519,-646.03,0.0001863,2]
[323470368,1714029070529,-548.61381352,0.0001863,2]
[323470369,1714029070539,-1084.85,0.0001863,2]
[323470370,1714029070549,-584.17,0.0001863,2]
[323470371,1714029070559,-331.33406503,0.0001863,2]
[323470372,1714029070571,-500.0,0.0001863,2]
[323470373,1714029070581,-762.04,0.0001863,2]
[323470374,1714029070592,-509.24,0.0001863,2]
[323470375,1714029070603,-500.0,0.0001863,2]
[323470376,1714029070614,-1828.52,0.0001863,2]
[323470377,1714029070625,-525.09,0.0001863,2]
[323470378,1714029070637,-9714.64,0.0001863,2]
[323470379,1714029070647,-500.0,0.0001863,2]
[323470380,1714029070659,-500.0,0.0001863,2]
[323470381,1714029070670,-1951.68,0.0001863,2]
[323470382,1714029070680,-1197.24,0.0001863,2]
[323470383,1714029070691,-639.36,0.0001863,2]
[323470384,1714029070702,-500.0,0.0001863,2]
[323470385,1714029070713,-500.0,0.0001863,2]
[323470386,1714029070722,-1048.02,0.0001863,2]
[323470387,1714029070731,-2000.98,0.0001863,2]
[323470388,1714029070740,-594.44,0.0001863,2]
[323470389,1714029070750,-1048.7,0.0001863,2]
[323470390,1714029070761,-335.28797261,0.0001863,2]
[323470391,1714029070770,-500.0,0.0001863,2]
[323470392,1714029070779,-1181.52,0.0001863,2]
[323470393,1714029070788,-500.0,0.0001863,2]
[323470394,1714029070799,-1309.77,0.0001863,2]
[323470395,1714029070808,-500.0,0.0001863,2]
[323470396,1714029070817,-678.72,0.0001863,2]